bitfinex/quotes_SOLUSD_20240912
["timestamp","ask_amount","ask_price","bid_price","bid_amount"]
[1726130275749,69.496684,135.5,135.49,0.12549]
[1726130276335,23.776884,135.49,135.48,1.21e-06]
[1726130278239,33.77688267,135.49,135.48,1.21e-06]
[1726130281038,33.77688267,135.49,135.44,0.2653093]
[1726130281540,45.0585,135.45,135.44,0.2653093]
[1726130283452,68.835384,135.45,135.44,0.2653093]
[1726130284044,68.835384,135.45,135.44,0.3907993]
[1726130284627,78.83538267,135.45,135.44,0.2653093]
[1726130287434,45.0585,135.45,135.44,0.2653093]
[1726130287639,45.0585,135.45,135.44,0.3907993]
[1726130295357,45.6103,135.49,135.44,0.3907993]
[1726130295672,45.6103,135.49,135.45,0.12549]
[1726130300270,45.6103,135.49,135.45,0.81549]
[1726130308588,9.99999867,135.48,135.45,0.81549]
[1726130309500,9.99999867,135.46,135.45,0.69]
[1726130311593,33.77688267,135.46,135.45,0.69]
[1726130312173,9.99999867,135.46,135.45,0.69]
[1726130321880,33.77688267,135.46,135.45,0.69]
[1726130324577,23.776884,135.45,135.44,0.2653093]
[1726130325581,23.776884,135.45,135.44,11.8453093]
[1726130327094,9.99999867,135.46,135.44,11.8453093]
[1726130327404,45.6103,135.49,135.45,20.12549]
[1726130327405,9.99999867,135.48,135.45,20.12549]
[1726130327591,9.99999867,135.48,135.45,31.70549]
[1726130328906,9.99999867,135.46,135.45,31.70549]
[1726130330110,9.99999867,135.46,135.45,31.58]
[1726130330604,9.99999867,135.48,135.45,31.58]
[1726130330906,9.99999867,135.48,135.46,0.12549]
[1726130334811,9.99999867,135.48,135.45,31.58]
[1726130338815,9.99999867,135.46,135.45,31.58]
[1726130339108,33.77688267,135.46,135.45,31.58]
[1726130342113,33.77688267,135.46,135.45,20.0]
[1726130342305,23.776884,135.45,135.44,0.2653093]
[1726130346312,23.776884,135.45,135.44,2.7253093]
[1726130353918,23.776884,135.45,135.44,0.2653093]
[1726130361321,36.255984,135.45,135.44,0.2653093]
[1726130361501,68.180684,135.45,135.44,0.2653093]
[1726130368236,23.776884,135.45,135.44,0.2653093]
[1726130368413,9.99999867,135.46,135.44,0.2653093]
[1726130370044,23.776884,135.45,135.44,0.2653093]
[1726130399735,71.11434037,135.45,135.44,0.2653093]
[1726130400446,71.11434037,135.45,135.4,0.2653093]
[1726130400447,33.77688267,135.41,135.4,0.2653093]
[1726130404463,79.24656879,135.41,135.4,0.2653093]
[1726130404645,79.37205879,135.41,135.4,0.2653093]
[1726130406968,91.65825879,135.41,135.4,0.2653093]
[1726130408776,91.78374879,135.41,135.35,0.2653093]
[1726130408957,33.77688267,135.36,135.35,0.2653093]
[1726130409862,35.62429894,135.36,135.35,0.2653093]
[1726130410453,33.77688267,135.36,135.35,0.2653093]
[1726130410746,64.68747267,135.36,135.35,0.2653093]
[1726130411171,79.36185879,135.36,135.35,0.2653093]
[1726130415164,79.48734879,135.36,135.35,0.2653093]
[1726130416265,9.99999867,135.32,135.31,0.2653093]
[1726130417677,10.12548867,135.32,135.31,0.2653093]
[1726130417869,24.79987479,135.32,135.31,0.2653093]
[1726130418266,48.57675879,135.32,135.31,0.2653093]
[1726130419083,33.90237267,135.32,135.31,0.2653093]
[1726130419267,33.77688267,135.32,135.31,0.2653093]
[1726130420891,34.02786267,135.32,135.31,0.2653093]
[1726130421483,33.90237267,135.32,135.31,0.2653093]
[1726130424680,9.99999867,135.32,135.31,0.2653093]
[1726130427372,33.77688267,135.32,135.31,0.2653093]
[1726130439407,35.62485544,135.32,135.31,0.2653093]
[1726130439809,33.77688267,135.32,135.31,0.2653093]
[1726130444194,9.99999867,135.32,135.31,0.2653093]
[1726130445614,33.77688267,135.32,135.31,0.2653093]
[1726130449500,50.29925886,135.32,135.31,0.2653093]
[1726130449708,33.90237267,135.32,135.31,0.2653093]
[1726130450013,81.89855879,135.32,135.31,0.2653093]
[1726130454496,82.02404879,135.32,135.31,0.2653093]
[1726130454710,81.89855879,135.32,135.31,0.2653093]
[1726130457023,43.32179867,135.32,135.31,0.2653093]
[1726130457212,9.99999867,135.32,135.31,0.2653093]
[1726130458299,33.77688267,135.32,135.31,0.2653093]
[1726130464420,33.90237267,135.32,135.31,0.2653093]
[1726130466524,35.75067405,135.32,135.31,0.2653093]
[1726130467026,33.90237267,135.32,135.31,0.2653093]
[1726130469019,9.99999867,135.32,135.31,0.2653093]
[1726130471428,33.77688267,135.32,135.31,0.2653093]
[1726130483030,35.750591,135.32,135.31,0.2653093]
[1726130483417,33.90237267,135.32,135.31,0.2653093]
[1726130496325,35.75079849,135.32,135.31,0.2653093]
[1726130496649,33.90237267,135.32,135.31,0.2653093]
[1726130496947,66.08166267,135.32,135.31,0.2653093]
[1726130497447,67.93026222,135.32,135.31,0.2653093]
[1726130498346,66.08166267,135.32,135.31,0.2653093]
[1726130504755,65.95617267,135.32,135.31,0.2653093]
[1726130507031,66.08166267,135.32,135.31,0.2653093]
[1726130507230,67.93022413,135.32,135.31,0.2653093]
[1726130510848,66.08166267,135.32,135.31,0.2653093]
[1726130518168,78.41396267,135.32,135.27,0.2653093]
[1726130518361,33.77688267,135.28,135.27,0.2653093]
[1726130521555,9.99999867,135.3,135.27,27.1172093]
[1726130521753,9.99999867,135.3,135.28,14.67438612]
[1726130523357,23.776884,135.31,135.28,14.67438612]
[1726130525757,9.99999867,135.3,135.28,14.67438612]
[1726130525972,23.776884,135.31,135.28,14.67438612]
[1726130526173,23.776884,135.31,135.29,20.0]
[1726130526360,33.77688267,135.3,135.29,20.0]
[1726130527082,23.776884,135.3,135.29,20.0]
[1726130529870,33.77688267,135.3,135.29,20.0]
[1726130531083,9.99999867,135.3,135.29,20.0]
[1726130531288,23.776884,135.31,135.29,20.0]
[1726130531583,23.776884,135.31,135.3,14.67438612]
[1726130531882,9.99999867,135.32,135.3,14.67438612]
[1726130532093,9.99999867,135.34,135.3,14.67438612]
[1726130532391,9.99999867,135.34,135.32,14.67438612]
[1726130534280,9.99999867,135.34,135.33,20.0]
[1726130535467,9.99999867,135.37,135.33,20.0]
[1726130535774,9.99999867,135.39,135.35,14.67438612]
[1726130535970,9.99999867,135.37,135.36,14.67438612]
[1726130537005,33.77688267,135.37,135.36,14.67438612]
[1726130538489,9.99999867,135.37,135.36,14.67438612]
[1726130542971,33.77688267,135.37,135.36,14.67438612]
[1726130543791,9.99999867,135.35,135.33,20.0]
[1726130544106,23.776884,135.36,135.34,14.67438612]
[1726130544282,23.776884,135.36,135.35,20.0]
[1726130545199,9.99999867,135.37,135.35,20.0]
[1726130546006,9.99999867,135.37,135.36,14.67438612]
[1726130546695,9.99999867,135.37,135.35,20.0]
[1726130546999,9.99999867,135.37,135.34,14.67438612]
[1726130547184,9.99999867,135.37,135.35,20.0]
[1726130549304,23.776884,135.36,135.35,20.0]
[1726130549504,9.99999867,135.34,135.32,14.67438612]
[1726130549713,33.77688267,135.36,135.33,20.0]
[1726130550489,9.99999867,135.34,135.33,20.0]
[1726130553521,33.77688267,135.36,135.33,20.0]
[1726130554017,9.99999867,135.34,135.33,20.0]
[1726130559398,9.99999867,135.34,135.33,34.67438612]
[1726130560730,33.77688267,135.36,135.33,34.67438612]
[1726130561226,33.77688267,135.36,135.35,14.67438612]
[1726130563639,9.99999867,135.4,135.35,14.67438612]
[1726130563801,41.96230797,135.42,135.39,14.67438612]
[1726130564002,41.96230797,135.42,135.33,46.8519]
[1726130564003,10.26530797,135.42,135.41,14.67438612]
[1726130564199,10.26530797,135.42,135.34,10.86619]
[1726130564503,10.26530797,135.42,135.39,14.67438612]
[1726130566833,9.99999867,135.4,135.39,14.67438612]
[1726130567130,9.99999867,135.4,135.39,34.67438612]
[1726130573723,33.77688267,135.4,135.39,20.0]
[1726130574110,9.99999867,135.38,135.37,14.67438612]
[1726130574309,9.99999867,135.38,135.37,43.71438612]
[1726130574831,9.99999867,135.38,135.37,34.67438612]
[1726130580335,23.776884,135.4,135.37,34.67438612]
[1726130580336,9.99999867,135.4,135.37,34.67438612]
[1726130580630,9.99999867,135.4,135.39,14.67438612]
[1726130581006,9.99999867,135.4,135.39,34.67438612]
[1726130581739,9.99999867,135.4,135.39,35.09438612]
[1726130589934,9.99999867,135.4,135.39,34.67438612]
[1726130590140,9.99999867,135.4,135.39,20.0]
[1726130590344,9.99999867,135.4,135.39,34.67438612]
[1726130591709,33.77688267,135.4,135.39,20.0]
[1726130591916,23.776884,135.39,135.38,20.0]
[1726130592123,23.776884,135.39,135.38,32.71]
[1726130592809,23.776884,135.39,135.38,20.0]
[1726130600045,9.99999867,135.4,135.38,20.0]
[1726130601426,23.776884,135.39,135.38,20.0]
[1726130602630,23.776884,135.39,135.37,20.0]
[1726130603133,33.77688267,135.38,135.37,20.0]
[1726130604633,33.77688267,135.38,135.35,22.38511501]
[1726130604961,23.776884,135.37,135.36,20.0]
[1726130605533,9.99999867,135.38,135.36,20.0]
[1726130607353,9.99999867,135.37,135.36,20.0]
[1726130614862,31.2509,135.41,135.36,29.03]
[1726130615078,31.2509,135.41,135.4,14.67438612]
[1726130616253,31.2509,135.41,135.39,14.67438612]
[1726130628888,31.2509,135.41,135.4,4.11748509]
[1726130634297,31.2509,135.41,135.39,14.67438612]
[1726130634668,31.2509,135.41,135.4,4.11714973]
[1726130636095,12.9360093,135.42,135.4,4.11714973]
[1726130636395,12.9360093,135.42,135.41,18.79087085]
[1726130636685,0.2653093,135.42,135.41,18.79087085]
[1726130636888,0.2653093,135.42,135.41,38.79087085]
[1726130637472,0.2653093,135.42,135.41,34.67438612]
[1726130637774,0.2653093,135.42,135.41,38.78899585]
[1726130638372,0.2653093,135.46,135.41,38.78899585]
[1726130638585,0.2653093,135.46,135.44,14.67438612]
[1726130638791,0.2653093,135.46,135.45,4.11460973]
[1726130640702,0.2653093,135.46,135.44,14.67438612]
[1726130640889,0.2653093,135.46,135.45,4.10715824]
[1726130641201,0.2653093,135.46,135.44,14.67438612]
[1726130641379,0.2653093,135.46,135.45,4.10689431]
[1726130641581,0.2653093,135.46,135.45,13.41177277]
[1726130642397,0.2653093,135.5,135.45,13.41177277]
[1726130642611,0.2653093,135.5,135.48,14.67438612]
[1726130643101,0.2653093,135.5,135.48,23.97926458]
[1726130643327,0.2653093,135.5,135.48,18.77820091]
[1726130643485,0.2653093,135.5,135.48,14.67438612]
[1726130654514,0.2653093,135.5,135.49,20.0]
[1726130661521,0.2653093,135.5,135.49,14.67438612]
[1726130661824,0.2653093,135.5,135.49,34.67438612]
[1726130663310,0.2653093,135.5,135.47,14.67438612]
[1726130667846,0.2653093,135.5,135.49,14.67438612]
[1726130672225,0.2653093,135.5,135.42,3.03387402]
[1726130672425,0.2653093,135.5,135.46,14.67438612]
[1726130672742,0.2653093,135.5,135.43,0.43]
[1726130672743,0.2653093,135.5,135.47,34.67438612]
[1726130673839,0.2653093,135.5,135.47,14.67438612]
[1726130674224,23.776884,135.48,135.46,14.67438612]
[1726130674949,23.776884,135.48,135.43,0.43]
[1726130675248,36.665584,135.48,135.43,0.43]
[1726130675423,36.665584,135.48,135.45,14.67438612]
[1726130675838,36.665584,135.48,135.42,20.0]
[1726130676038,36.665584,135.48,135.44,14.67438612]
[1726130676238,36.665584,135.48,135.42,13.07]
[1726130676442,36.665584,135.48,135.43,14.67438612]
[1726130677523,36.665584,135.48,135.44,20.0]
[1726130677724,36.665584,135.48,135.45,14.67438612]
[1726130682733,36.665584,135.48,135.44,20.0]
[1726130684030,36.665584,135.48,135.45,14.67438612]
[1726130686529,0.12549,135.47,135.45,14.67438612]
[1726130688347,0.12549,135.47,135.44,20.0]
[1726130688751,0.12549,135.47,135.43,14.67438612]
[1726130689333,36.665584,135.48,135.43,14.67438612]
[1726130694064,0.12549,135.47,135.43,14.67438612]
[1726130697146,0.12549,135.47,135.44,20.0]
[1726130701865,0.25098,135.47,135.42,14.67438612]
[1726130702044,0.25098,135.47,135.43,20.0]
[1726130703056,0.12549,135.47,135.44,14.67438612]
[1726130703965,36.665584,135.48,135.44,14.67438612]
[1726130707656,36.665584,135.48,135.43,20.0]
[1726130707851,36.665584,135.48,135.43,14.67438612]
[1726130708375,36.665584,135.48,135.44,20.0]
[1726130710065,36.665584,135.48,135.45,14.67438612]
[1726130710248,36.665584,135.48,135.46,20.0]
[1726130716269,36.665584,135.48,135.46,31.63275528]
[1726130716666,36.665584,135.48,135.46,20.0]
[1726130716865,36.665584,135.48,135.46,31.6328058]
[1726130718667,36.665584,135.48,135.46,31.63535237]
[1726130720166,36.665584,135.48,135.46,20.0]
[1726130720899,36.665584,135.48,135.47,11.63126664]
[1726130721070,36.665584,135.48,135.45,14.67438612]
[1726130721275,36.665584,135.48,135.46,11.62935483]
[1726130721789,36.665584,135.48,135.47,11.62935483]
[1726130721990,36.665584,135.48,135.47,20.0]
[1726130722192,36.665584,135.48,135.47,31.62935483]
[1726130722577,36.665584,135.48,135.47,20.0]
[1726130722778,36.665584,135.48,135.47,31.62935483]
[1726130722970,36.665584,135.48,135.47,20.0]
[1726130723175,36.665584,135.48,135.47,31.62935483]
[1726130723384,36.665584,135.48,135.47,20.0]
[1726130723572,36.665584,135.48,135.47,31.62935483]
[1726130723783,36.665584,135.48,135.47,20.0]
[1726130723975,36.665584,135.48,135.46,31.62935483]
[1726130724180,36.665584,135.48,135.47,11.62935483]
[1726130724694,36.665584,135.48,135.47,31.62935483]
[1726130725067,36.665584,135.48,135.47,31.62665705]
[1726130726683,36.665584,135.48,135.47,20.0]
[1726130726884,36.665584,135.48,135.42,31.62665705]
[1726130727078,36.665584,135.48,135.43,26.30104317]
[1726130727396,36.665584,135.48,135.44,31.62665705]
[1726130727397,0.12549,135.47,135.44,31.62665705]
[1726130727576,0.12549,135.47,135.45,11.62665705]
[1726130727774,0.12549,135.47,135.44,20.0]
[1726130727775,36.665584,135.48,135.46,31.62665705]
[1726130728002,36.665584,135.48,135.47,11.62665705]
[1726130728189,36.791074,135.48,135.47,20.0]
[1726130728896,36.791074,135.48,135.47,11.62612449]
[1726130729198,36.791074,135.48,135.47,31.62612449]
[1726130729377,36.916564,135.48,135.47,29.29790344]
[1726130729574,36.916564,135.48,135.47,40.92402793]
[1726130729781,36.916564,135.48,135.47,29.29790344]
[1726130729992,36.916564,135.48,135.47,40.92402793]
[1726130730194,36.916564,135.48,135.47,9.29790344]
[1726130730498,36.916564,135.48,135.47,9.29798271]
[1726130730698,36.916564,135.48,135.47,20.92046109]
[1726130730906,36.916564,135.48,135.47,9.29798271]
[1726130731090,36.916564,135.48,135.47,20.92046109]
[1726130731296,36.916564,135.48,135.47,9.29798271]
[1726130731482,36.916564,135.48,135.42,14.67438612]
[1726130731686,0.25098,135.47,135.45,9.19724371]
[1726130731886,0.25098,135.47,135.46,20.0]
[1726130732376,0.25098,135.47,135.43,20.0]
[1726130732575,0.12549,135.47,135.43,20.0]
[1726130733604,0.12549,135.47,135.44,14.67438612]
[1726130733805,0.12549,135.47,135.45,20.0]
[1726130745594,31.5571,135.49,135.46,14.67438612]
[1726130745921,31.5571,135.49,135.47,20.0]
[1726130749122,23.776884,135.48,135.47,20.0]
[1726130749415,23.776884,135.46,135.42,14.67438612]
[1726130751003,23.776884,135.44,135.39,1.28584968]
[1726130751311,0.12549,135.43,135.37,11.25154211]
[1726130751515,0.25098,135.43,135.39,14.67438612]
[1726130752013,0.25098,135.43,135.36,29.81622526]
[1726130752014,0.25098,135.43,135.36,7.397]
[1726130752220,0.25098,135.43,135.39,14.67438612]
[1726130752729,0.25098,135.43,135.4,20.0]
[1726130763829,12.94078,135.43,135.4,20.0]
[1726130764126,25.62332662,135.42,135.4,20.0]
[1726130764529,23.776884,135.42,135.4,20.0]
[1726130766415,0.12549,135.41,135.4,20.0]
[1726130766615,0.25098,135.41,135.36,22.07138612]
[1726130766829,0.25098,135.41,135.37,20.0]
[1726130767126,23.776884,135.4,135.37,20.0]
[1726130767327,0.12549,135.39,135.37,20.0]
[1726130767513,0.12549,135.39,135.36,22.07138612]
[1726130768234,0.12549,135.39,135.36,14.67438612]
[1726130768809,0.25098,135.39,135.37,20.0]
[1726130769010,2.09790588,135.39,135.37,20.0]
[1726130769411,23.776884,135.38,135.37,20.0]
[1726130769636,23.902374,135.38,135.37,20.0]
[1726130769837,23.902374,135.38,135.35,20.2653093]
[1726130769838,0.12549,135.38,135.35,20.2653093]
[1726130770131,0.12549,135.37,135.35,0.2653093]
[1726130770312,0.25098,135.37,135.35,0.2653093]
[1726130770712,0.12549,135.36,135.35,0.2653093]
[1726130770958,0.25098,135.36,135.35,0.2653093]
[1726130771607,0.25098,135.36,135.35,20.2653093]
[1726130771807,0.25098,135.36,135.35,0.2653093]
[1726130772024,0.25098,135.36,135.35,20.2653093]
[1726130772437,0.12549,135.36,135.35,20.2653093]
[1726130782361,0.12549,135.36,135.35,0.2653093]
[1726130782554,25.75002114,135.36,135.35,0.2653093]
[1726130782750,25.87551114,135.36,135.35,0.2653093]
[1726130782953,24.027864,135.36,135.35,0.2653093]
[1726130788774,57.235664,135.36,135.35,0.2653093]
[1726130790866,79.425664,135.36,135.35,0.2653093]
[1726130791078,91.588864,135.36,135.35,0.2653093]
[1726130791269,69.398864,135.36,135.35,0.2653093]
[1726130791469,91.588864,135.36,135.35,0.2653093]
[1726130792664,69.398864,135.36,135.35,0.2653093]
[1726130801076,45.371,135.36,135.35,0.2653093]
[1726130802473,69.398864,135.36,135.35,0.2653093]
[1726130803077,24.027864,135.36,135.35,0.2653093]
[1726130812267,24.027864,135.36,135.35,0.2653093]
[1726130815793,23.902374,135.36,135.35,0.2653093]
[1726130816101,12.2157,135.4,135.35,4.32838516]
[1726130816267,12.2157,135.4,135.35,29.30775083]
[1726130816468,12.2157,135.4,135.35,20.2653093]
[1726130816661,12.2157,135.4,135.35,29.30775083]
[1726130817387,23.776884,135.39,135.35,20.2653093]
[1726130817593,23.776884,135.39,135.35,29.30775083]
[1726130817594,0.25098,135.38,135.35,29.30775083]
[1726130819088,0.25098,135.38,135.35,20.2653093]
[1726130819384,0.25098,135.38,135.35,29.30289964]
[1726130819691,0.25098,135.38,135.35,29.30288814]
[1726130820689,0.25098,135.38,135.35,29.30285768]
[1726130821190,0.25098,135.38,135.35,20.2653093]
[1726130824890,0.25098,135.38,135.35,0.2653093]
[1726130825103,23.776884,135.36,135.35,0.2653093]
[1726130825390,24.027864,135.36,135.35,0.2653093]
[1726130825975,23.902374,135.36,135.35,14.93969542]
[1726130826180,23.776884,135.36,135.35,34.93969542]
[1726130826382,23.776884,135.39,135.35,34.93969542]
[1726130826581,0.25098,135.38,135.36,20.0]
[1726130830872,23.776884,135.36,135.35,0.2653093]
[1726130831073,25.62462394,135.36,135.35,0.2653093]
[1726130831288,24.027864,135.36,135.35,0.2653093]
[1726130831977,23.902374,135.36,135.35,14.93969542]
[1726130832295,23.776884,135.36,135.35,34.93969542]
[1726130832973,23.776884,135.39,135.35,34.93969542]
[1726130833188,23.776884,135.39,135.36,20.0]
[1726130834284,0.12549,135.38,135.36,20.0]
[1726130843320,0.25098,135.38,135.36,20.0]
[1726130845903,0.25098,135.38,135.35,0.2653093]
[1726130846109,23.776884,135.36,135.35,0.2653093]
[1726130846285,24.027864,135.36,135.35,0.2653093]
[1726130849310,55.006064,135.36,135.35,0.2653093]
[1726130849481,56.8538134,135.36,135.35,0.2653093]
[1726130853091,69.0488134,135.36,135.35,0.2653093]
[1726130856509,67.201064,135.36,135.35,0.2653093]
[1726130858699,24.027864,135.36,135.35,0.2653093]
[1726130858899,33.1567,135.39,135.35,0.2653093]
[1726130859204,1.84749443,135.38,135.35,0.2653093]
[1726130860109,55.3467,135.39,135.35,0.2653093]
[1726130860317,24.027864,135.38,135.35,0.2653093]
[1726130862015,46.217864,135.38,135.35,0.2653093]
[1726130862211,60.89225012,135.38,135.35,0.2653093]
[1726130863101,38.70225012,135.38,135.35,0.2653093]
[1726130864305,24.027864,135.38,135.35,0.2653093]
[1726130869427,23.776884,135.36,135.35,0.2653093]
[1726130869635,24.027864,135.36,135.35,0.2653093]
[1726130871732,0.25098,135.36,135.35,0.2653093]
[1726130872212,24.027864,135.36,135.35,0.2653093]
[1726130872834,0.25098,135.36,135.35,0.2653093]
[1726130873337,25.87554732,135.36,135.35,0.2653093]
[1726130875333,2.09866332,135.36,135.35,0.2653093]
[1726130875636,0.25098,135.36,135.35,0.2653093]
[1726130879345,33.1567,135.39,135.35,0.2653093]
[1726130880541,23.776884,135.38,135.35,0.2653093]
[1726130880727,0.12549,135.37,135.35,0.2653093]
[1726130881132,23.776884,135.36,135.35,0.2653093]
[1726130881432,24.027864,135.36,135.35,0.2653093]
[1726130891347,25.87560151,135.36,135.35,0.2653093]
[1726130891929,24.027864,135.36,135.35,0.2653093]
[1726130900264,33.1567,135.39,135.35,0.2653093]
[1726130901566,14.67438612,135.36,135.35,0.2653093]
[1726130901860,24.027864,135.36,135.35,0.2653093]
[1726130902256,33.1567,135.39,135.35,0.2653093]
[1726130902474,30.782,135.42,135.35,0.2653093]
[1726130902676,30.782,135.42,135.35,20.2653093]
[1726130903661,23.902374,135.41,135.35,20.2653093]
[1726130904066,38.57676012,135.41,135.35,20.2653093]
[1726130904753,0.12549,135.4,135.35,20.2653093]
[1726130905002,0.12549,135.4,135.35,0.2653093]
[1726130914504,0.12549,135.4,135.35,0.2653093]
[1726130918279,1.97299571,135.4,135.35,0.2653093]
[1726130918481,23.902374,135.39,135.35,0.2653093]
[1726130918677,23.776884,135.37,135.35,0.2653093]
[1726130918899,0.25098,135.36,135.35,0.2653093]
[1726130922193,25.87552054,135.36,135.35,0.2653093]
[1726130923181,24.027864,135.36,135.35,0.2653093]
[1726130923592,46.217864,135.36,135.35,0.2653093]
[1726130923768,24.027864,135.36,135.35,0.2653093]
[1726130930208,25.87563498,135.36,135.35,0.2653093]
[1726130930987,24.027864,135.36,135.35,0.2653093]
[1726130941108,25.87578011,135.36,135.35,0.2653093]
[1726130941308,25.87578011,135.36,135.35,0.1398193]
[1726130941509,25.87578011,135.36,135.31,0.2653093]
[1726130941510,46.217864,135.36,135.31,0.2653093]
[1726130941710,14.67438612,135.34,135.31,0.2653093]
[1726130942115,0.12549,135.33,135.31,0.2653093]
[1726130943130,0.12549,135.34,135.31,0.2653093]
[1726130943626,0.25098,135.34,135.31,0.2653093]
[1726130944124,23.776884,135.33,135.31,0.2653093]
[1726130944343,0.25098,135.32,135.31,0.2653093]
[1726130944498,40.55017172,135.32,135.31,0.2653093]
[1726130944823,25.8757856,135.32,135.31,0.2653093]
[1726130945021,40.55017172,135.32,135.31,0.2653093]
[1726130945917,0.12549,135.32,135.31,0.2653093]
[1726130946136,22.40916707,135.36,135.31,0.2653093]
[1726130946328,14.67438612,135.36,135.31,0.2653093]
[1726130946900,36.86438612,135.36,135.31,0.2653093]
[1726130947429,23.776884,135.35,135.31,0.2653093]
[1726130947926,0.25098,135.34,135.31,0.2653093]
[1726130948638,68.45518612,135.38,135.31,0.2653093]
[1726130950033,23.776884,135.37,135.31,0.2653093]
[1726130950219,0.12549,135.36,135.31,0.2653093]
[1726130951228,0.25098,135.36,135.31,0.2653093]
[1726130954231,22.44098,135.36,135.31,0.2653093]
[1726130954438,0.25098,135.36,135.31,0.2653093]
[1726130957843,12.5526,135.39,135.32,14.67438612]
[1726130958133,33.66559597,135.42,135.34,41.52628612]
[1726130958134,30.7273,135.42,135.34,41.52628612]
[1726130958312,30.7273,135.42,135.35,20.0]
[1726130958515,12.1857,135.43,135.35,20.0]
[1726130959434,12.1857,135.43,135.35,34.67438612]
[1726130960341,24.027864,135.42,135.35,34.67438612]
[1726130963119,54.7434,135.45,135.37,14.67438612]
[1726130963445,32.5234,135.45,135.37,14.67438612]
[1726130965025,32.5234,135.45,135.35,29.06370524]
[1726130965026,0.2653093,135.46,135.41,14.67438612]
[1726130966830,0.25098,135.45,135.41,14.67438612]
[1726130967831,0.25098,135.45,135.39,41.52628612]
[1726130968051,0.25098,135.45,135.4,20.0]
[1726130971755,0.25098,135.45,135.39,26.8519]
[1726130971960,24.027864,135.45,135.36,41.52628612]
[1726130972138,24.027864,135.45,135.37,20.0]
[1726130972648,24.027864,135.45,135.36,41.52628612]
[1726130974052,24.027864,135.45,135.37,20.0]
[1726130974441,24.027864,135.45,135.37,34.67438612]
[1726130976464,23.776884,135.43,135.37,34.67438612]
[1726130976767,0.25098,135.42,135.37,34.67438612]
[1726130980462,0.25098,135.42,135.37,20.0]
[1726130994353,0.25098,135.42,135.37,34.67438612]
[1726130995270,0.25098,135.42,135.37,14.67438612]
[1726130996659,23.776884,135.41,135.37,14.67438612]
[1726130996862,0.25098,135.4,135.37,14.67438612]
[1726130997170,0.25098,135.42,135.37,14.67438612]
[1726130997376,0.25098,135.39,135.37,14.67438612]
[1726130997557,0.25098,135.42,135.37,14.67438612]
[1726130999868,13.4094093,135.46,135.39,14.67438612]
[1726131000969,13.4094093,135.46,135.37,14.67438612]
[1726131000970,28.08379542,135.46,135.37,14.67438612]
[1726131001354,24.027864,135.45,135.37,14.67438612]
[1726131003361,24.027864,135.45,135.37,23.73704692]
[1726131003875,23.776884,135.43,135.37,9.0626608]
[1726131004082,23.776884,135.41,135.35,27.80999864]
[1726131004386,0.25098,135.4,135.36,33.13561252]
[1726131004582,0.25098,135.4,135.36,29.06306859]
[1726131004963,0.25098,135.4,135.37,14.67438612]
[1726131005476,0.25098,135.4,135.37,23.73739926]
[1726131005685,59.76799542,135.46,135.37,23.73739926]
[1726131006765,23.776884,135.45,135.37,23.73739926]
[1726131007175,0.25098,135.44,135.37,23.73739926]
[1726131007385,0.25098,135.44,135.36,20.0]
[1726131007690,0.25098,135.44,135.36,14.67438612]
[1726131008795,0.25098,135.44,135.37,9.06339914]
[1726131011766,0.25098,135.44,135.37,18.12691503]
[1726131011985,0.25098,135.44,135.37,9.06339914]
[1726131012190,45.0936093,135.46,135.38,14.67438612]
[1726131012486,0.2653093,135.46,135.4,14.67438612]
[1726131012686,0.2653093,135.46,135.42,14.67438612]
[1726131014197,0.25098,135.45,135.42,14.67438612]
[1726131015799,0.25098,135.45,135.41,4.07133852]
[1726131016098,0.25098,135.45,135.4,14.67438612]
[1726131016295,0.25098,135.45,135.39,14.67438612]
[1726131016599,23.776884,135.43,135.39,14.67438612]
[1726131016784,0.25098,135.42,135.39,14.67438612]
[1726131019691,0.25098,135.42,135.34,10.7407]
[1726131019895,0.25098,135.42,135.36,14.67438612]
[1726131020087,0.25098,135.42,135.37,20.0]
[1726131021007,23.776884,135.41,135.37,20.0]
[1726131021215,0.25098,135.4,135.37,20.0]
[1726131021708,0.25098,135.4,135.38,14.67438612]
[1726131022190,0.25098,135.4,135.37,20.0]
[1726131022505,0.25098,135.4,135.34,10.7407]
[1726131022506,0.25098,135.4,135.38,14.67438612]
[1726131029093,0.12549,135.4,135.38,14.67438612]